bitfinex/quotes_ETHUSD_20241212
["timestamp","ask_amount","ask_price","bid_price","bid_amount"]
[1734040709591,0.7532,3870.1,3869.5,0.258436]
[1734040709790,0.7532,3870.1,3869.5,2.842736]
[1734040709998,0.7532,3870.1,3869.5,1.021636]
[1734040710201,0.50927216,3870.9,3869.5,1.021636]
[1734040710202,0.7551,3870.4,3869.5,1.021636]
[1734040710401,0.7551,3870.4,3870.1,2.58385]
[1734040710655,0.7551,3870.4,3870.2,0.258385]
[1734040710802,0.7551,3870.4,3870.0,2.58396]
[1734040712483,0.7551,3870.4,3869.8,3.0]
[1734040712484,0.7506,3871.0,3870.3,2.58376]
[1734040712620,0.7506,3871.0,3870.1,2.58389]
[1734040718568,0.7506,3871.0,3869.9,2.58404]
[1734040718959,0.7506,3871.0,3869.8,3.37266]
[1734040719132,0.7506,3871.0,3870.0,1.15278667]
[1734040719486,0.7506,3871.0,3870.1,2.58386]
[1734040719838,0.7506,3871.0,3870.0,1.15278667]
[1734040720040,0.7506,3871.0,3870.2,2.58384]
[1734040720787,0.55,3870.9,3870.2,2.58384]
[1734040722396,0.55,3870.9,3870.0,1.15278667]
[1734040722876,0.55,3870.9,3870.1,2.58385]
[1734040723189,0.55,3870.5,3869.5,0.258436]
[1734040723392,0.55,3870.5,3869.6,1.15278667]
[1734040724487,0.55,3870.5,3869.7,3.0]
[1734040724793,0.55,3870.5,3869.8,3.0]
[1734040724968,0.55,3870.5,3869.6,1.15278667]
[1734040725168,0.55,3870.5,3869.9,2.58404]
[1734040725335,0.55,3870.5,3869.7,3.10526227]
[1734040725535,0.55,3870.5,3869.8,3.0]
[1734040726550,0.55,3870.5,3869.8,5.58408]
[1734040728997,0.55,3870.5,3869.8,3.0]
[1734040729208,0.55,3870.5,3869.9,2.58404]
[1734040729555,0.55,3870.5,3869.8,0.49323249]
[1734040729791,0.55,3870.5,3869.8,3.07732249]
[1734040730751,0.8032,3870.4,3869.3,2.58443]
[1734040730978,0.8032,3870.3,3869.3,2.58443]
[1734040731473,0.8032,3870.3,3869.4,2.58435]
[1734040731671,0.8032,3870.3,3869.6,2.58421]
[1734040732011,0.55,3870.2,3869.5,1.15278667]
[1734040732215,0.55,3870.2,3869.5,3.73708667]
[1734040732854,0.55,3870.2,3869.6,2.58424]
[1734040733794,0.8116,3870.7,3870.1,3.73663667]
[1734040734115,0.8116,3870.7,3870.5,2.58362]
[1734040735367,0.55,3870.6,3870.5,2.58362]
[1734040736991,0.55,3870.6,3870.1,2.58389]
[1734040738503,0.55,3870.6,3870.1,2.58385]
[1734040739395,0.55,3870.6,3869.8,5.2302673]
[1734040739555,0.55,3870.6,3870.4,2.5837]
[1734040739755,0.55,3870.6,3870.0,4.07748063]
[1734040739954,0.55,3870.6,3870.2,2.58378]
[1734040744785,0.55,3870.6,3869.8,1.07748063]
[1734040744986,0.7526,3870.1,3869.4,1.07748063]
[1734040745203,0.7526,3869.7,3869.0,1.07748063]
[1734040745408,1.3026,3869.6,3868.8,2.2302673]
[1734040745579,0.55,3869.4,3868.7,3.66231063]
[1734040745885,0.55,3869.2,3868.7,2.58483]
[1734040746488,0.55,3869.2,3868.5,2.2302673]
[1734040746699,0.55,3869.2,3869.1,2.58458]
[1734040746907,0.55,3869.2,3868.8,1.15278667]
[1734040746908,0.55,3869.2,3868.9,2.5847]
[1734040749892,0.55,3869.8,3869.1,2.58458]
[1734040751101,0.55,3869.8,3868.8,0.7847]
[1734040751418,0.55,3869.6,3868.9,2.58469]
[1734040751721,0.55,3869.6,3868.5,1.77059207]
[1734040751722,0.55,3869.2,3868.5,2.58496]
[1734040752782,0.55,3869.2,3868.6,2.5849]
[1734040753093,0.54461115,3869.2,3868.7,2.58478]
[1734040754085,0.54461115,3869.2,3868.3,1.07748063]
[1734040754288,0.54461115,3869.2,3868.8,2.58476]
[1734040754620,0.54461115,3869.2,3868.5,2.34309232]
[1734040754786,0.54461115,3869.2,3868.9,2.58465]
[1734040755684,0.54461115,3869.2,3869.0,2.58464]
[1734040755994,0.54461115,3869.2,3868.7,0.7784]
[1734040756194,0.54461115,3869.2,3869.0,2.58461]
[1734040756784,1.34399264,3870.2,3869.1,2.58454]
[1734040756785,0.757,3869.9,3869.1,2.58454]
[1734040757029,0.55,3869.8,3869.1,2.58454]
[1734040760141,0.55,3869.8,3869.2,2.5845]
[1734040760342,0.55,3869.8,3869.3,2.58444]
[1734040760492,0.55,3869.8,3869.4,2.58434]
[1734040762299,0.55,3869.8,3868.9,2.34309232]
[1734040762502,0.55,3869.8,3869.1,2.58456]
[1734040763363,0.55,3869.8,3869.2,2.58447]
[1734040764062,0.55,3869.8,3869.0,2.58463]
[1734040764485,0.55,3869.8,3868.9,2.34309232]
[1734040764631,0.55,3869.8,3869.1,2.58455]
[1734040764833,0.55,3869.8,3869.0,0.64306785]
[1734040764834,0.55,3869.4,3868.5,2.58492]
[1734040765080,0.55,3869.2,3868.6,2.58489]
[1734040765290,0.55,3869.2,3868.7,2.58483]
[1734040765437,0.55,3868.8,3868.2,1.07748063]
[1734040765756,0.55,3868.6,3868.0,2.58526]
[1734040766780,0.55,3868.4,3867.7,1.07748063]
[1734040766986,0.55,3867.9,3866.7,1.07748063]
[1734040767280,2.89309232,3868.4,3866.9,2.58604]
[1734040767281,0.55,3867.7,3866.9,2.58604]
[1734040768358,0.55,3867.7,3866.8,0.35032016]
[1734040768359,0.55,3867.7,3867.0,2.58597]
[1734040769374,0.55,3867.7,3866.8,2.93640016]
[1734040770254,0.55,3867.7,3866.8,0.35032016]
[1734040770476,0.55,3867.7,3866.9,2.58602]
[1734040771069,0.8138,3868.1,3867.5,2.34309232]
[1734040771274,0.8138,3868.1,3867.6,0.02585416]
[1734040771580,0.8138,3868.1,3867.1,3.0]
[1734040771778,0.8138,3868.1,3867.2,0.641482]
[1734040771993,0.8138,3868.1,3866.7,3.8289]
[1734040772490,0.50633303,3869.0,3866.4,0.8289]
[1734040772491,0.55,3867.8,3866.4,0.8289]
[1734040772691,0.55,3867.8,3866.8,2.58605]
[1734040774198,0.55,3867.8,3867.0,2.58596]
[1734040774918,0.55,3867.8,3866.6,2.58625]
[1734040774919,0.55,3867.8,3867.2,2.58581]
[1734040775557,0.55,3867.8,3867.3,2.58572]
[1734040775759,0.55,3867.8,3867.2,2.58579]
[1734040775983,0.55,3867.8,3867.3,2.58576]
[1734040777687,0.55,3867.8,3867.4,2.5857]
[1734040779817,0.55,3867.8,3867.7,2.58551]
[1734040780200,0.55,3867.8,3867.5,2.58564]
[1734040781213,0.55,3867.8,3866.7,3.0]
[1734040781421,0.55,3867.8,3867.1,2.5859]
[1734040781797,0.55,3867.6,3866.9,2.58603]
[1734040782349,0.55,3867.6,3867.0,2.58597]
[1734040782499,0.55,3866.8,3865.5,0.7934]
[1734040782700,0.55,3866.6,3865.8,2.58677]
[1734040783009,0.55,3866.6,3865.2,2.58712]
[1734040783010,0.55,3866.4,3865.3,2.58705]
[1734040783197,3.13639,3866.4,3865.4,0.338045]
[1734040784594,0.55,3866.4,3865.4,0.338045]
[1734040784830,0.8135,3866.5,3866.1,2.58652]
[1734040785940,0.55,3866.4,3865.8,2.58675]
[1734040786953,0.55,3866.4,3865.9,2.58671]
[1734040788348,0.55,3866.4,3865.8,3.0]
[1734040788567,0.55,3866.4,3865.9,0.258671]
[1734040789214,0.55,3866.0,3864.9,0.7919]
[1734040789456,0.55,3865.8,3864.8,0.0527304]
[1734040790159,0.55,3865.8,3864.8,2.6401804]
[1734040790738,3.1368,3865.8,3864.8,0.0527304]
[1734040791054,1.3409,3865.6,3864.8,0.0527304]
[1734040791349,0.55,3865.4,3864.8,0.0527304]
[1734040791535,0.55,3865.1,3864.8,0.0527304]
[1734040791918,0.55,3865.2,3864.8,0.0527304]
[1734040795640,0.55,3865.3,3864.8,0.0527304]
[1734040795887,2.34309232,3865.5,3864.8,0.0527304]
[1734040795888,1.3552,3864.9,3864.8,0.0527304]
[1734040803912,1.35208928,3864.9,3864.8,0.0527304]
[1734040804313,3.93946928,3864.9,3864.8,0.0527304]
[1734040804513,3.93946928,3864.9,3863.4,0.7765]
[1734040804514,0.7542,3864.8,3863.4,0.7765]
[1734040804731,0.7542,3864.7,3863.4,3.0]
[1734040806106,1.3277,3864.2,3862.9,2.58867]
[1734040806426,1.3277,3864.2,3862.6,2.58888]
[1734040806427,0.55,3864.0,3863.0,2.58866]
[1734040806626,0.8055,3863.9,3863.1,3.0]
[1734040806794,0.55,3863.8,3863.1,3.0]
[1734040807528,0.55,3863.8,3862.9,3.0]
[1734040807731,0.55,3863.8,3862.7,2.58884]
[1734040807732,3.13812,3863.8,3862.7,2.58884]
[1734040808037,2.58835,3863.5,3862.4,2.58903]
[1734040808341,0.394362,3863.7,3862.1,0.7729]
[1734040808342,1.3607,3863.4,3862.1,0.7729]
[1734040808644,0.55,3863.2,3862.2,2.58919]
[1734040809197,0.55,3863.3,3862.2,2.58919]
[1734040809514,0.55,3863.3,3862.4,2.58904]
[1734040809702,0.55,3863.3,3861.9,2.58934]
[1734040809703,0.8107,3863.2,3862.0,2.58933]
[1734040809907,0.55,3863.1,3862.3,2.58912]
[1734040811451,0.55,3863.1,3862.4,2.58905]
[1734040811635,0.55,3863.1,3862.0,3.83234623]
[1734040811801,0.55,3863.1,3862.0,0.83234623]
[1734040812006,0.55,3863.1,3862.8,2.58874]
[1734040812639,0.55,3863.1,3862.3,2.58907]
[1734040812640,0.55,3863.1,3862.3,3.7773]
[1734040812948,0.55,3863.1,3862.9,2.58868]
[1734040813098,0.55,3863.1,3863.0,2.58866]
[1734040813298,0.55,3863.1,3862.8,2.58878]
[1734040813521,0.55,3863.1,3862.4,0.61203923]
[1734040813723,0.55,3863.1,3862.9,2.58872]
[1734040814324,0.55,3863.1,3862.4,0.61203923]
[1734040814524,0.55,3863.1,3863.0,2.58866]
[1734040815612,0.55,3863.1,3862.8,2.58875]
[1734040816539,0.55,3863.1,3862.5,0.7254105]
[1734040816916,0.8145,3863.6,3862.6,2.58892]
[1734040817121,0.55,3863.5,3863.0,2.58864]
[1734040817440,0.55,3863.5,3862.5,0.7254105]
[1734040817640,0.55,3863.5,3863.2,2.58852]
[1734040818660,0.55,3863.5,3862.9,2.58866]
[1734040818866,0.55,3863.5,3863.1,2.58859]
[1734040819333,0.55,3863.5,3862.7,0.8111]
[1734040819534,0.55,3863.5,3863.1,2.58853]
[1734040819967,0.55,3863.5,3862.7,5.74305232]
[1734040820267,1.08318962,3864.7,3862.7,5.74305232]
[1734040820268,0.8304,3864.0,3863.6,2.58822]
[1734040821727,0.55,3863.9,3863.6,2.58822]
[1734040821935,0.55,3863.9,3862.8,2.58879]
[1734040822270,1.08318962,3864.7,3862.8,2.58879]
[1734040822271,0.7571,3864.5,3863.7,0.7647]
[1734040822567,0.7571,3864.5,3864.0,2.58795]
[1734040823142,0.7571,3864.5,3863.7,0.7647]
[1734040823341,0.7571,3864.5,3864.1,2.58791]
[1734040823653,0.55,3864.4,3864.3,2.58779]
[1734040824731,0.8316,3864.8,3864.3,2.58779]
[1734040824937,0.55,3864.7,3864.3,2.58779]
[1734040825973,0.55,3864.7,3864.0,2.58792]
[1734040826468,0.55,3864.7,3864.1,2.5879]
[1734040828633,0.55,3864.7,3863.3,3.0]
[1734040828634,0.55,3864.5,3863.3,0.8207]
[1734040828895,0.55,3864.3,3863.5,2.58826]
[1734040829073,0.55,3864.3,3863.1,2.58856]
[1734040829339,0.55,3864.3,3863.6,2.58819]
[1734040830671,0.55,3864.3,3863.7,2.58814]
[1734040831230,0.55,3864.3,3863.5,0.8062]
[1734040831231,0.55,3864.3,3863.5,3.3945]
[1734040831436,0.55,3864.3,3863.2,3.8062]
[1734040831667,0.55,3864.3,3863.6,2.58823]
[1734040831873,0.55,3864.3,3863.3,0.91492923]
[1734040832340,0.55,3864.3,3863.5,2.5883]
[1734040832539,0.55,3864.3,3863.6,2.58825]
[1734040834450,0.55,3864.3,3863.7,2.58813]
[1734040834839,0.55,3864.3,3863.7,0.258813]
[1734040835038,0.55,3864.3,3863.3,0.91492923]
[1734040835039,0.55,3864.3,3863.9,2.58804]
[1734040835473,0.55,3864.1,3863.1,0.8062]
[1734040835659,0.55,3864.0,3863.1,3.39479]
[1734040835858,0.55,3864.0,3863.1,2.58859]
[1734040837064,0.55,3864.0,3862.8,2.58879]
[1734040837272,0.55,3864.0,3862.9,3.67631471]
[1734040837476,0.55,3864.0,3863.3,2.58844]
[1734040837796,0.55,3864.0,3863.4,2.58838]
[1734040838486,0.55,3864.0,3863.5,2.58831]
[1734040839812,0.55,3864.0,3863.3,2.58845]
[1734040840027,0.55,3864.0,3863.4,2.58839]
[1734040843516,0.55,3864.0,3863.4,0.258839]
[1734040843717,0.55,3864.6,3863.9,2.58805]
[1734040844548,0.55,3864.6,3863.7,0.7991]
[1734040845139,0.55,3864.6,3863.9,2.588]
[1734040846332,0.55,3864.6,3864.0,2.58796]
[1734040848000,0.55,3864.6,3863.8,2.58811]
[1734040848407,0.55,3864.6,3863.9,2.58804]
[1734040848630,0.55,3864.6,3863.7,0.7991]
[1734040848931,0.55,3864.6,3864.0,2.58797]
[1734040852051,0.55,3864.6,3863.5,5.58829]
[1734040852052,0.55,3864.6,3863.5,3.0]
[1734040852252,0.55,3864.3,3863.4,3.0]
[1734040852455,0.55,3864.1,3863.4,3.0]
[1734040852992,0.55,3864.1,3863.1,3.8019]
[1734040853164,0.55,3864.1,3863.3,2.5884]
[1734040853654,0.55,3864.1,3863.4,2.58838]
[1734040854219,0.55,3864.1,3863.1,0.8019]
[1734040854420,0.55,3864.1,3863.6,2.58825]
[1734040857273,0.55,3864.1,3863.4,2.58839]
[1734040861577,0.833,3863.8,3863.1,1.07748063]
[1734040861763,0.833,3863.8,3863.0,3.66608063]
[1734040862078,0.55,3863.7,3863.0,3.66608063]
[1734040862442,0.55,3863.7,3863.0,1.07748063]
[1734040862643,0.55,3863.7,3863.1,2.58858]
[1734040863580,0.55,3863.7,3863.2,2.58852]
[1734040863747,0.55,3863.7,3863.0,1.07748063]
[1734040863954,0.55,3863.7,3863.2,2.5885]
[1734040865106,0.7652,3864.1,3863.7,2.58817]
[1734040865397,0.7652,3864.1,3863.7,2.58816]
[1734040866599,0.7652,3864.1,3863.5,2.58832]
[1734040867014,0.7652,3864.1,3863.6,2.58825]
[1734040868058,0.7652,3864.1,3863.5,2.58832]
[1734040868253,0.7652,3864.1,3863.4,4.25187295]
[1734040868785,0.7652,3864.1,3863.4,4.05670652]
[1734040868997,0.7652,3864.1,3863.7,2.58817]
[1734040869288,0.7652,3864.1,3863.8,2.58812]
[1734040869487,0.7652,3864.1,3863.9,2.588]
[1734040869852,0.7652,3864.1,3863.7,2.58812]
[1734040870055,0.7651,3864.6,3864.2,2.58784]
[1734040870997,0.7651,3864.6,3864.0,2.58797]
[1734040871182,0.7651,3864.6,3863.7,2.01133344]
[1734040871379,0.55,3864.5,3864.2,2.58781]
[1734040871567,0.55,3864.5,3864.3,2.58772]
[1734040871785,0.55,3864.8,3863.9,1.88108063]
[1734040872105,0.55,3864.8,3864.6,2.58757]
[1734040872403,0.55,3864.8,3864.7,2.58752]
[1734040875911,0.55,3864.8,3864.2,2.58781]
[1734040875912,0.55,3864.8,3864.5,2.58765]
[1734040876111,0.55,3864.6,3863.8,1.07748063]
[1734040876312,0.55,3864.4,3864.2,2.58781]
[1734040876520,0.55,3864.4,3864.3,2.58779]
[1734040876812,0.8,3864.7,3863.8,1.07748063]
[1734040876813,0.55,3864.6,3863.8,1.07748063]
[1734040876971,0.55,3864.6,3864.4,2.58768]
[1734040877176,0.55,3864.6,3863.8,1.07748063]
[1734040877177,0.55,3864.6,3864.5,2.58765]
[1734040877376,1.35,3864.7,3864.6,2.58758]
[1734040878042,0.55,3864.9,3864.3,2.58773]
[1734040878215,0.55,3864.9,3864.7,2.58747]
[1734040879408,0.55,3864.9,3864.3,2.58773]
[1734040880130,0.55,3864.9,3864.3,3.66521063]
[1734040880289,0.55,3864.9,3864.4,2.58772]
[1734040880490,0.55,3864.9,3864.7,2.5875]
[1734040881331,0.55,3864.9,3864.8,2.58745]
[1734040887204,0.54748541,3864.9,3864.8,2.58745]
[1734040888312,0.8045,3865.3,3865.2,2.58718]
[1734040888522,0.8045,3865.3,3865.0,2.58731]
[1734040888714,0.8045,3865.3,3864.4,2.34309232]
[1734040889034,0.8045,3865.3,3865.1,2.58718]
[1734040889201,0.8045,3865.3,3865.1,2.5872]
[1734040889202,0.55,3865.2,3865.1,2.5872]
[1734040889631,0.55,3865.6,3865.1,2.58725]
[1734040889835,1.3082,3865.6,3865.2,2.58713]
[1734040890137,1.3082,3865.6,3864.9,2.58738]
[1734040890351,1.3082,3865.6,3865.3,2.58707]
[1734040890718,1.3082,3865.6,3865.4,2.58702]
[1734040892922,1.3082,3865.6,3865.0,0.8284]
[1734040893165,0.12711776,3866.8,3866.7,2.58618]
[1734040893446,0.12711776,3866.8,3865.3,1.07748063]
[1734040893447,0.7688,3866.7,3865.3,1.07998046]
[1734040893662,0.7688,3866.7,3865.8,2.58672]
[1734040893871,0.7688,3866.7,3865.3,1.07998046]
[1734040894014,0.7688,3866.7,3865.6,2.58686]
[1734040894212,0.7688,3866.7,3865.4,2.58705]
[1734040894447,0.7688,3866.7,3865.8,3.41518]
[1734040894663,0.7688,3866.7,3866.6,2.58625]
[1734040894922,3.98784342,3867.0,3866.9,2.58605]
[1734040895149,4.47697267,3867.0,3866.4,2.58635]
[1734040895653,4.47697267,3867.0,3865.8,0.8284]
[1734040895654,4.47697267,3867.0,3866.9,2.58605]
[1734040896374,3.21904342,3867.0,3866.9,2.58605]
[1734040898774,3.21904342,3867.0,3866.9,5.69664232]
[1734040899808,3.21904342,3867.0,3866.0,5.69722232]
[1734040899959,0.55,3866.9,3866.0,2.34309232]
[1734040900159,0.55,3866.9,3866.1,2.58658]
[1734040900373,0.55,3866.7,3866.1,2.58658]
[1734040901686,0.55,3866.7,3866.0,2.34309232]
[1734040901904,0.55,3866.7,3866.0,4.92973232]
[1734040902201,0.55,3866.7,3866.1,2.58657]
[1734040903592,0.55,3866.7,3866.0,4.92972232]
[1734040904698,0.55,3866.7,3866.1,2.58657]
[1734040905064,0.55,3867.0,3866.1,2.58657]
[1734040905264,0.944259,3867.0,3866.1,2.58657]
[1734040906011,0.944259,3867.0,3866.5,2.58627]
[1734040906312,0.944259,3867.0,3866.0,4.92973232]
[1734040906313,0.55,3867.0,3866.3,2.58645]
[1734040906475,0.55,3867.0,3866.0,2.34309232]
[1734040906476,0.55,3867.0,3866.1,2.58658]
[1734040906675,0.55,3867.0,3866.0,2.34309232]
[1734040906879,0.55,3867.0,3866.2,2.58647]
[1734040907077,0.55,3867.0,3866.1,2.58658]
[1734040907290,0.55,3867.0,3866.3,2.58644]
[1734040908088,0.68568,3867.0,3866.0,4.92967232]
[1734040908292,0.68568,3867.0,3866.0,2.34309232]
[1734040908613,3.27166,3867.0,3866.0,4.92973232]
[1734040908918,0.68568,3867.0,3866.0,4.92973232]
[1734040909579,0.68568,3867.0,3866.1,2.58658]
[1734040910215,0.40784,3866.9,3866.0,2.34309232]
[1734040910381,0.55,3866.8,3866.0,2.34309232]
[1734040910804,0.55,3866.8,3866.0,4.92973232]
[1734040912798,0.40784,3866.9,3866.2,2.58649]
[1734040912799,0.55,3866.9,3866.2,2.58649]
[1734040913249,0.55,3866.9,3866.0,2.34309232]
[1734040913250,0.55,3866.9,3866.0,4.92972232]
[1734040913558,0.55,3866.9,3866.1,2.58658]
[1734040914055,0.55,3866.9,3866.3,2.58642]
[1734040915964,0.8068,3867.1,3866.4,3.12469232]
[1734040916125,0.8284,3867.5,3866.8,2.58609]
[1734040916433,0.8284,3867.5,3866.4,3.12469232]
[1734040916635,0.8284,3867.5,3867.0,2.58595]
[1734040918083,0.55,3867.4,3867.0,2.58595]
[1734040918840,0.55,3867.4,3866.8,4.92918232]
[1734040919094,0.55,3867.4,3867.0,2.58595]
[1734040919294,0.8214,3868.1,3866.8,2.34309232]
[1734040919593,0.16027933,3868.0,3867.1,2.5859]
[1734040920879,0.55,3867.9,3867.1,2.5859]
[1734040921663,0.55,3867.9,3866.8,2.34309232]
[1734040921664,0.55,3867.9,3867.2,2.5858]
[1734040922151,0.55,3868.0,3867.2,2.5858]
[1734040922748,0.55,3867.8,3866.6,3.0]
[1734040922950,0.55,3867.8,3866.5,0.36176436]
[1734040922951,0.55,3867.3,3866.0,0.8313]
[1734040923193,0.13046,3867.7,3866.1,2.58652]
[1734040923194,0.7862,3867.0,3866.1,2.58652]
[1734040923419,0.55,3866.9,3866.1,2.58652]
[1734040924002,0.55,3866.9,3865.8,2.34309232]
[1734040924213,0.55,3866.9,3866.1,2.58655]
[1734040925078,0.55,3866.9,3866.2,2.58648]
[1734040927502,0.55,3866.9,3865.8,2.34309232]
[1734040927802,0.55,3866.9,3866.1,2.58656]
[1734040929292,0.55,3866.9,3865.6,3.0]
[1734040929293,0.7831,3866.3,3865.2,2.58714]
[1734040929504,0.55,3866.0,3865.2,2.58714]
[1734040929867,0.55,3866.0,3865.0,2.34309232]
[1734040930071,0.55,3866.0,3865.8,2.58675]
[1734040930266,0.55,3866.0,3865.6,2.5869]
[1734040932389,0.55,3866.0,3865.4,4.93012232]
[1734040934012,0.55,3866.0,3865.4,2.58703]
[1734040938002,0.55,3866.0,3865.1,0.67930755]
[1734040938003,0.8285,3865.9,3865.1,0.67930755]
[1734040938324,0.55,3865.8,3864.8,1.07904315]
[1734040938524,0.55,3865.8,3864.7,4.07904315]
[1734040939025,0.55,3865.8,3864.9,2.58732]
[1734040939234,0.55,3865.8,3865.0,2.58729]
[1734040944401,0.55,3865.8,3865.1,2.58723]
[1734040945196,0.55,3865.8,3865.1,0.258723]
[1734040945418,0.55,3865.8,3865.4,2.58698]
[1734040946315,0.55,3865.8,3865.1,0.258723]
[1734040946637,0.55,3865.8,3865.2,2.58717]
[1734040946949,0.54688687,3865.8,3865.2,2.58717]
[1734040947317,0.54688687,3865.8,3865.2,3.36480253]
[1734040947972,0.54688687,3865.8,3865.3,2.58708]
[1734040949257,0.54688687,3865.8,3865.3,3.74272627]
[1734040949735,0.54688687,3865.8,3865.4,2.587]
[1734040950108,0.7642,3865.7,3865.3,1.15564627]
[1734040950308,0.7642,3865.7,3864.4,2.15496126]
[1734040950309,0.55,3865.6,3864.9,2.58732]
[1734040950540,0.55,3865.6,3864.9,3.74296627]
[1734040950779,0.55,3865.6,3864.2,0.12887678]
[1734040950780,3.8,3865.1,3864.1,1.07904315]
[1734040950913,0.7917,3864.1,3863.5,3.78320115]
[1734040951117,0.55,3864.0,3863.5,3.78320115]
[1734040952136,2.58805,3863.9,3863.5,3.78320115]
[1734040952342,2.58825,3863.6,3863.5,3.78320115]
[1734040952641,4.365625,3863.6,3863.5,3.78320115]
[1734040953142,11.641625,3863.6,3863.5,2.94990115]
[1734040953322,11.641625,3863.6,3861.8,2.70138412]
[1734040953323,3.13939,3861.9,3861.8,2.70138412]
[1734040954339,4.160729,3861.9,3861.8,2.70138412]
[1734040954745,1.571339,3861.9,3861.8,2.70138412]
[1734040955451,3.84679,3861.9,3861.8,2.70138412]
[1734040955612,2.58962,3861.6,3860.3,2.5904]
[1734040955811,1.2574,3861.9,3860.3,2.5904]
[1734040955812,0.55,3861.4,3860.3,2.5904]
[1734040956030,3.13974,3861.4,3860.1,2.59056]
[1734040956627,0.55,3861.4,3860.2,2.59053]
[1734040956823,0.86396,3861.4,3860.3,2.59044]
[1734040957034,0.55,3861.7,3860.4,2.59039]
[1734040957237,2.58953,3861.7,3860.4,2.59039]
[1734040957438,0.55,3861.6,3860.4,2.59039]
[1734040957838,0.55,3861.6,3859.9,6.36837]
[1734040957839,0.55,3861.6,3860.6,2.59026]
[1734040958044,6.16293536,3861.9,3860.6,2.59026]
[1734040958045,3.13948,3861.8,3860.6,2.59026]
[1734040958231,3.13948,3861.8,3859.6,2.48087358]
[1734040958232,2.35129812,3861.1,3859.5,2.591]
[1734040958429,2.35129812,3861.1,3859.3,2.69727891]
[1734040958430,4.49252981,3861.0,3859.3,2.69727891]
[1734040958642,4.74252981,3861.0,3859.3,2.69727891]
[1734040958871,0.7074,3860.8,3860.7,2.59237661]
[1734040959155,4.2574,3860.8,3860.7,1.35100941]
[1734040959359,1.2574,3860.8,3860.7,1.35100941]
[1734040959719,0.7074,3860.8,3860.7,1.35100941]
[1734040960438,0.7074,3861.6,3860.7,1.74513635]
[1734040960631,2.48016796,3862.6,3861.3,2.58979]
[1734040960632,0.7074,3862.5,3861.3,2.58979]
[1734040960832,0.51040587,3862.2,3861.3,2.58979]
[1734040961557,6.23690002,3861.5,3860.4,2.35129812]
[1734040961759,12.20811798,3861.4,3861.2,2.58981]
[1734040962053,12.20642015,3861.3,3861.2,2.58981]
[1734040962262,12.75642015,3861.3,3861.2,2.58981]
[1734040962566,12.75642015,3861.3,3860.5,3.0]
[1734040962744,5.2295551,3860.7,3860.6,3.14931]
[1734040962945,13.94843529,3860.7,3860.6,3.14931]
[1734040963459,8.71888019,3860.7,3860.5,2.35129812]
[1734040963622,6.53916082,3860.7,3860.5,2.35129812]
[1734040963826,0.55,3861.3,3860.5,2.35129812]
[1734040963827,0.55,3861.3,3861.2,2.58986]
[1734040964083,0.55,3861.2,3860.8,2.5901]
[1734040964366,0.7745,3862.2,3860.8,3.08423981]
[1734040964657,0.7745,3862.2,3860.9,2.37719636]
[1734040964819,0.52292081,3863.0,3861.3,2.35129812]
[1734040965023,0.52292081,3863.0,3862.0,2.58932]
[1734040965451,0.52292081,3863.0,3861.8,2.58944]
[1734040965652,0.52292081,3863.0,3861.3,4.94108812]
[1734040965852,0.52292081,3863.0,3861.8,2.58945]
[1734040966055,0.55,3862.9,3861.9,2.58939]
[1734040966260,0.55,3862.9,3862.0,2.58931]
[1734040966420,0.55,3862.7,3862.0,2.58931]
[1734040966629,0.55,3862.7,3861.5,2.58966]
[1734040966827,0.55,3862.7,3861.9,2.58939]
[1734040967058,0.55,3862.7,3861.3,2.35129812]
[1734040967281,0.55,3862.5,3860.9,5.35129812]
[1734040967487,0.7689,3862.6,3860.9,5.35129812]
[1734040967488,3.13913,3862.3,3860.9,4.94135812]
[1734040967640,0.7689,3862.6,3860.9,4.94135812]
[1734040967641,0.55,3862.1,3860.9,2.59006]
[1734040967839,0.55,3861.9,3860.9,2.59006]
[1734040968043,0.55,3861.9,3860.6,2.59027]
[1734040968258,0.55,3861.9,3861.0,2.58994]
[1734040968581,0.68366,3861.9,3860.9,2.35129812]
[1734040968888,0.55,3861.9,3861.8,2.58946]
[1734040972976,0.55,3861.9,3861.6,2.58957]
[1734040973163,0.55,3861.9,3861.6,2.53957]
[1734040973851,0.55,3861.9,3861.4,0.794]
[1734040973852,0.55,3861.9,3861.7,2.58951]
[1734040974850,0.55,3861.9,3861.0,3.0]
[1734040975056,0.55,3862.1,3860.9,0.831]
[1734040975291,0.55,3862.1,3860.5,2.35129812]
[1734040975292,0.55,3861.9,3860.5,2.35129812]
[1734040975469,0.7645,3861.8,3860.7,2.59013]
[1734040975663,0.55,3861.7,3860.8,2.59011]
[1734040975980,0.55,3861.7,3860.2,2.59053]
[1734040976278,0.55,3860.7,3860.2,2.59053]
[1734040976480,6.1879632,3860.5,3860.1,2.35129812]
[1734040976665,12.37592639,3860.4,3860.1,4.94188812]
[1734040976946,12.37618915,3860.3,3860.1,4.94188812]
[1734040977128,12.37618915,3860.2,3859.9,2.35049812]
[1734040977283,8.84021018,3860.1,3859.9,3.0]
[1734040977487,8.84101969,3860.0,3859.7,2.35129812]